bitfinex-derivatives/quotes_ETHF0:USTF0_20240910
["timestamp","ask_amount","ask_price","bid_price","bid_amount"]
[1726002160019,1.05123,2378.1,2377.6,0.3806]
[1726002160224,0.42052,2377.9,2377.6,0.80116]
[1726002160434,0.42053,2377.8,2377.6,0.3806]
[1726002160626,0.42052,2377.9,2377.6,0.80117]
[1726002161026,0.42052,2377.9,2377.7,0.42055]
[1726002161224,0.42048,2378.1,2377.8,0.42052]
[1726002161522,0.42049,2378.1,2377.9,0.3999]
[1726002162245,0.4205,2378.0,2377.9,0.3999]
[1726002162431,0.42049,2378.1,2377.9,0.3999]
[1726002162830,0.42049,2378.1,2378.0,40.8]
[1726002165437,2.10276,2377.7,2377.6,0.23032551]
[1726002165635,0.42059,2377.5,2377.3,0.7845]
[1726002165937,1.05133,2377.8,2377.4,40.8]
[1726002166237,0.42058,2377.5,2377.4,40.8]
[1726002166439,0.42058,2377.6,2377.4,41.2206]
[1726002166640,0.42058,2377.5,2377.4,40.8]
[1726002169753,5.81318547,2378.0,2377.6,0.42055]
[1726002169754,0.4205,2378.0,2377.6,0.42055]
[1726002169937,1.05126,2378.0,2377.6,0.42055]
[1726002170136,0.42053,2377.8,2377.7,0.3826]
[1726002171336,0.42052,2377.9,2377.8,0.42052]
[1726002171539,1.49039547,2378.3,2377.7,0.3826]
[1726002171742,1.05108,2378.4,2378.0,3.28]
[1726002171933,0.42045,2378.3,2378.2,0.42046]
[1726002173639,0.42046,2378.2,2378.1,1.14997]
[1726002174033,0.42046,2378.2,2378.1,5.35477]
[1726002174639,1.05116,2378.2,2377.9,0.42051]
[1726002174839,3.28,2378.3,2377.6,4.930823]
[1726002174840,0.42053,2377.9,2377.8,0.3684]
[1726002177645,1.47182,2377.9,2377.8,0.3684]
[1726002178743,0.42058,2377.6,2377.5,0.42058]
[1726002178939,0.42058,2377.6,2377.5,0.78908]
[1726002179253,0.42058,2377.6,2377.5,0.3685]
[1726002181243,0.42058,2377.6,2377.5,0.78908]
[1726002183548,0.42058,2377.6,2377.5,0.3685]
[1726002184347,0.42058,2377.6,2377.5,0.7386]
[1726002185541,0.42058,2377.6,2377.5,0.3701]
[1726002186044,0.42058,2377.5,2377.4,41.2206]
[1726002186546,12.72992,2377.5,2377.4,40.8]
[1726002186736,0.42065,2377.1,2377.0,0.3716]
[1726002187138,0.42065,2377.2,2377.1,0.42065]
[1726002187343,0.42065,2377.2,2377.1,41.22065]
[1726002188649,0.42065,2377.2,2377.1,40.8]
[1726002189649,0.42065,2377.2,2377.1,41.22065]
[1726002190447,0.42065,2377.2,2377.1,40.8]
[1726002192049,0.42065,2377.2,2377.1,41.22065]
[1726002194340,1.64234321,2377.7,2377.1,54.2864]
[1726002194341,1.09489547,2377.7,2377.1,54.2864]
[1726002194554,4.102,2377.9,2377.6,3.28]
[1726002194738,1.05138,2377.7,2377.3,1.650823]
[1726002194942,1.05147,2377.5,2377.2,0.7884]
[1726002195141,1.05147,2377.5,2377.2,1.20903]
[1726002195142,0.42062,2377.3,2377.2,1.20903]
[1726002195344,1.47218,2377.3,2377.2,0.386]
[1726002195644,10.2064,2377.3,2376.8,1.650823]
[1726002195849,0.42073,2376.7,2376.6,2.039623]
[1726002196042,0.42073,2376.7,2376.6,3.29113438]
[1726002196246,0.42073,2376.7,2376.6,42.44031138]
[1726002196552,0.80582,2376.8,2376.6,41.60954]
[1726002196856,0.80582,2376.8,2376.6,41.1888]
[1726002196857,0.42073,2376.7,2376.6,41.1888]
[1726002197053,4.2072,2376.7,2376.3,1.650823]
[1726002197247,0.42076,2376.6,2376.3,0.80959]
[1726002197446,0.42074,2376.7,2376.4,41.22078]
[1726002197750,0.42074,2376.6,2376.5,0.3967]
[1726002198347,0.3851,2376.8,2376.5,0.81746]
[1726002198544,1.09489547,2377.2,2376.7,0.42072]
[1726002198744,0.42068,2377.0,2376.8,0.3819]
[1726002199152,5.82048547,2377.3,2376.8,0.8026]
[1726002199153,0.42066,2377.1,2376.8,0.8026]
[1726002199453,0.42066,2377.1,2376.9,0.3666]
[1726002200054,0.42065,2377.2,2376.9,0.78728]
[1726002201650,0.42065,2377.1,2376.9,0.78728]
[1726002202943,0.42065,2377.1,2377.0,40.8]
[1726002204253,0.42067,2377.0,2376.9,0.3666]
[1726002204460,0.42067,2377.0,2376.5,0.3885]
[1726002204461,0.42077,2376.5,2376.3,0.42079]
[1726002204648,1.05182,2376.7,2376.3,0.3791]
[1726002204854,0.42078,2376.5,2376.4,40.8]
[1726002205552,1.43573,2376.9,2376.5,0.42076]
[1726002205748,1.43573,2376.9,2376.5,0.81416]
[1726002206050,0.42073,2376.7,2376.6,0.3631]
[1726002214770,0.42073,2376.7,2376.6,0.78384]
[1726002215860,0.42073,2376.7,2376.6,0.3631]
[1726002217669,0.42076,2376.5,2376.4,40.8]
[1726002217863,0.42078,2376.4,2376.3,0.3791]
[1726002218064,0.42078,2376.4,2376.1,0.3652]
[1726002218065,0.42081,2376.2,2376.1,0.3652]
[1726002218266,0.42081,2376.2,2376.1,1.16203]
[1726002218569,0.42081,2376.2,2376.1,41.96203]
[1726002222570,0.42081,2376.3,2376.2,0.4208]
[1726002223160,4.102,2376.8,2376.2,8.54004]
[1726002223366,0.42076,2376.6,2376.5,0.42076]
[1726002223756,0.42077,2376.5,2376.4,0.42076]
[1726002224374,0.42077,2376.5,2376.4,41.22076]
[1726002225377,1.05177,2376.9,2376.4,45.008]
[1726002225674,0.42074,2376.7,2376.6,0.42074]
[1726002225876,0.42074,2376.7,2376.6,0.79134]
[1726002226076,0.42074,2376.7,2376.6,0.3706]
[1726002227971,1.47256,2376.7,2376.6,0.3706]
[1726002228566,0.42074,2376.7,2376.6,0.3706]
[1726002229871,0.42074,2376.7,2376.6,0.79134]
[1726002230871,0.42074,2376.7,2376.6,0.3706]
[1726002231779,0.42074,2376.7,2376.6,0.79134]
[1726002231976,0.42072,2376.8,2376.7,0.42072]
[1726002232281,0.42073,2376.7,2376.6,0.79133]
[1726002234084,0.42072,2376.8,2376.7,0.42071]
[1726002234273,0.4207,2376.9,2376.8,0.4207]
[1726002235778,1.091033,2377.1,2376.7,1.05182]
[1726002235981,0.42064,2377.2,2377.1,0.42064]
[1726002236484,0.42064,2377.2,2376.8,3.6497]
[1726002236485,0.42062,2377.3,2377.2,0.42063]
[1726002236669,1.05152,2377.4,2376.9,1.64713771]
[1726002236982,0.42065,2377.2,2377.1,0.42065]
[1726002237288,0.42065,2377.2,2377.0,0.42066]
[1726002237474,0.42065,2377.2,2377.1,0.78585]
[1726002238977,0.42065,2377.2,2377.1,0.3652]
[1726002239376,1.47225,2377.2,2377.1,0.3652]
[1726002242776,1.511663,2377.3,2377.2,0.42064]
[1726002242979,1.091033,2377.4,2377.3,0.42062]
[1726002243282,1.091033,2377.6,2377.5,0.42058]
[1726002243590,0.42057,2377.6,2377.5,0.42058]
[1726002243777,0.42057,2377.6,2377.5,41.22058]
[1726002243977,0.42057,2377.6,2377.5,40.8]
[1726002244479,0.42057,2377.6,2377.5,41.22058]
[1726002244676,0.42057,2377.6,2377.5,40.8]
[1726002246080,0.42057,2377.6,2377.5,41.22058]
[1726002247081,1.47224,2377.2,2377.1,0.3652]
[1726002247281,0.42064,2377.2,2377.1,0.3652]
[1726002247479,0.42064,2377.2,2376.8,2.02543771]
[1726002247480,0.42069,2376.9,2376.8,0.3783]
[1726002247679,0.42069,2376.9,2376.8,40.8]
[1726002257491,1.09264732,2377.2,2376.8,40.8]
[1726002257693,1.51329732,2377.2,2377.1,0.42065]
[1726002257889,0.42066,2377.1,2376.8,40.8]
[1726002258083,1.51329732,2377.2,2377.0,0.42066]
[1726002258483,1.09264732,2377.2,2377.1,0.42065]
[1726002258687,1.09264732,2377.5,2377.1,0.42065]
[1726002258888,0.42064,2377.2,2377.0,0.42066]
[1726002259390,0.42065,2377.1,2376.8,40.8]
[1726002259589,0.42065,2377.2,2377.0,0.42067]
[1726002260091,0.42065,2377.1,2376.9,0.42068]
[1726002260296,0.42064,2377.2,2377.0,0.42067]
[1726002260997,0.42064,2377.2,2377.1,0.42065]
[1726002261297,0.4206,2377.4,2377.1,0.42064]
[1726002261686,1.09264732,2377.5,2377.1,0.42064]
[1726002261687,0.42062,2377.3,2377.1,0.42064]
[1726002262299,1.09264732,2377.5,2377.1,0.42064]
[1726002262796,0.42063,2377.3,2377.1,0.42064]
[1726002262992,0.42063,2377.3,2377.2,0.3878]
[1726002264094,0.4206,2377.5,2377.3,0.42061]
[1726002264289,1.09264732,2377.7,2377.3,0.42061]
[1726002264290,1.0514,2377.7,2377.3,0.42061]
[1726002264490,0.4206,2377.4,2377.3,0.42061]
[1726002264690,0.4206,2377.5,2377.3,0.42062]
[1726002264890,0.4206,2377.4,2377.3,0.42062]
[1726002265091,1.09264732,2377.8,2377.4,0.4206]
[1726002265092,0.42057,2377.6,2377.4,0.4206]
[1726002265299,0.42057,2377.6,2377.2,0.3878]
[1726002265495,0.42057,2377.6,2377.4,0.42059]
[1726002265887,6.62293732,2377.9,2377.5,0.42058]
[1726002265888,0.42056,2377.7,2377.5,0.42058]
[1726002266092,0.42056,2377.7,2377.6,0.3859]
[1726002269794,0.42056,2377.7,2377.0,2.07143329]
[1726002269795,0.42063,2377.3,2377.0,2.07143329]
[1726002269994,1.05147,2377.5,2377.1,0.79675]
[1726002269995,0.42061,2377.4,2377.1,0.79675]
[1726002270194,0.42062,2377.3,2377.1,0.79675]
[1726002272910,0.42061,2377.4,2377.2,0.42063]
[1726002273504,2.14404732,2377.7,2377.1,0.3761]
[1726002273505,0.42063,2377.3,2377.1,0.3761]
[1726002273696,0.42062,2377.4,2377.2,0.42063]
[1726002273900,0.42062,2377.4,2377.1,0.3761]
[1726002273901,1.09264732,2377.7,2377.3,0.42061]
[1726002274101,0.42059,2377.5,2377.3,0.42061]
[1726002274300,0.42059,2377.5,2377.4,0.3931]
[1726002274511,1.09264732,2377.7,2377.4,0.8137]
[1726002274512,0.42058,2377.6,2377.4,0.8137]
[1726002274708,6.79230098,2377.8,2377.4,0.3931]
[1726002274709,0.42058,2377.5,2377.4,0.3931]
[1726002275205,0.42058,2377.5,2377.4,0.8137]
[1726002275408,0.42058,2377.6,2377.4,0.3931]
[1726002275806,0.42058,2377.6,2377.4,0.81369]
[1726002276001,0.42058,2377.6,2377.4,0.3931]
[1726002276207,1.09264732,2377.9,2377.6,0.42056]
[1726002276414,0.42055,2377.7,2377.6,0.42055]
[1726002277520,0.42055,2377.7,2377.5,0.3793]
[1726002277718,0.42055,2377.7,2377.6,0.42056]
[1726002277905,1.09264732,2378.0,2377.6,4.2056]
[1726002278101,1.30364732,2378.3,2378.0,0.42049]
[1726002278402,0.42046,2378.2,2378.1,41.1959]
[1726002278813,2.14373732,2378.4,2378.1,41.61637]
[1726002278814,0.42045,2378.3,2378.1,41.61637]
[1726002279004,0.42046,2378.2,2378.1,41.1959]
[1726002279210,0.42046,2378.2,2377.3,5.05585863]
[1726002279211,1.0512,2378.1,2377.4,1.65076329]
[1726002279415,1.05136,2377.8,2377.4,0.8165]
[1726002279709,0.42057,2377.6,2377.5,40.8]
[1726002280914,0.42057,2377.6,2377.5,41.1988]
[1726002281314,0.42057,2377.6,2377.5,41.61938]
[1726002281509,2.52982963,2377.9,2377.6,0.42056]
[1726002281817,0.42053,2377.8,2377.6,0.42056]
[1726002282017,0.3859,2377.9,2377.6,0.42056]
[1726002282216,0.42054,2377.8,2377.6,0.42056]
[1726002282409,0.42054,2377.8,2377.5,41.1988]
[1726002282605,0.42054,2377.8,2377.6,0.42056]
[1726002282912,1.09259963,2378.0,2377.7,0.42055]
[1726002283112,1.09259963,2378.0,2377.5,41.1988]
[1726002283113,1.09259963,2378.1,2377.8,0.42053]
[1726002283416,1.09259963,2378.1,2377.5,42.84956329]
[1726002283417,1.47849963,2378.2,2377.9,0.42051]
[1726002283714,0.42048,2378.1,2378.0,0.3989]
[1726002285312,0.42048,2378.1,2378.0,0.7966]
[1726002287720,0.42048,2378.1,2378.0,1.2171]
[1726002287910,0.42048,2378.1,2378.0,0.7966]
[1726002288412,2.14368963,2378.4,2378.0,1.21709]
[1726002288413,1.05109,2378.4,2378.0,1.21709]
[1726002288613,0.42048,2378.1,2378.0,0.7966]
[1726002289016,0.42048,2378.1,2378.0,1.2171]
[1726002289217,0.42043,2378.4,2378.3,0.42044]
[1726002289717,0.42043,2378.4,2378.2,0.42045]
[1726002290317,0.42041,2378.5,2378.4,0.42042]
[1726002290513,0.42041,2378.5,2378.3,0.42043]
[1726002290719,0.42041,2378.5,2378.4,40.8]
[1726002292121,6.45709694,2378.9,2378.4,40.8]
[1726002292122,2.14345963,2378.9,2378.4,40.8]
[1726002292321,0.42037,2378.7,2378.6,0.42038]
[1726002292516,0.42037,2378.8,2378.6,0.42038]
[1726002292826,0.42037,2378.7,2378.5,1.1969]
[1726002293018,0.42037,2378.7,2378.5,1.5925]
[1726002293526,0.42039,2378.6,2378.5,0.3945]
[1726002294215,0.42039,2378.6,2378.5,0.81491]
[1726002294823,0.42039,2378.6,2378.5,0.3945]
[1726002296424,1.47137,2378.6,2378.5,0.3945]
[1726002296617,1.47137,2378.6,2378.4,40.8]
[1726002296618,0.42041,2378.5,2378.4,40.8]
[1726002296818,0.79181,2378.5,2378.4,40.8]
[1726002297013,0.79181,2378.5,2378.4,41.22042]
[1726002297222,1.44953,2379.0,2378.4,40.8]
[1726002297437,0.42039,2378.6,2378.5,0.42039]
[1726002298324,1.05091,2378.8,2378.4,40.8]
[1726002298325,0.42041,2378.5,2378.4,40.8]
[1726002298518,0.4204,2378.6,2378.5,0.4204]
[1726002298719,0.4204,2378.6,2378.5,0.42041]
[1726002300420,0.42038,2378.7,2378.6,0.42038]
[1726002300715,0.21037531,2379.2,2378.5,1.05103]
[1726002300716,0.42034,2378.9,2378.5,1.05103]
[1726002300917,1.05081,2379.0,2378.6,0.7999]
[1726002301118,0.42035,2378.8,2378.7,0.3663]
[1726002302028,0.42035,2378.8,2378.7,0.78667]
[1726002302826,0.42034,2378.9,2378.8,0.42034]
[1726002303025,0.42033,2379.0,2378.9,0.42033]
[1726002303325,0.7761,2379.3,2378.7,1.41721]
[1726002303526,0.4203,2379.1,2379.0,0.42031]
[1726002303723,1.43468,2379.3,2379.1,0.3644]
[1726002303928,1.43468,2379.3,2379.1,0.7617]
[1726002304124,0.42028,2379.2,2379.1,1.182]
[1726002304325,4.102,2379.4,2379.2,0.42028]
[1726002304523,0.42028,2379.2,2379.1,0.7617]
[1726002304724,0.42027,2379.3,2379.1,0.7617]
[1726002304920,0.42027,2379.3,2379.1,1.18199]
[1726002305626,0.42027,2379.3,2379.2,0.42028]
[1726002305827,1.0505,2379.7,2379.3,0.42026]
[1726002306136,0.42024,2379.5,2379.3,0.42025]
[1726002306832,1.05045,2379.8,2379.4,40.8]
[1726002307028,0.42021,2379.6,2379.5,0.3971]
[1726002307929,0.42019,2379.8,2379.5,0.3971]
[1726002308125,1.41799,2380.0,2379.6,0.3736]
[1726002308729,0.42019,2379.8,2379.6,0.79381]
[1726002309124,0.42018,2379.8,2379.6,0.79381]
[1726002310136,1.4707,2379.7,2379.6,0.3736]
[1726002310332,0.42021,2379.6,2379.5,0.3971]
[1726002310537,0.42021,2379.6,2379.5,0.7707]
[1726002310732,1.47075,2379.6,2379.5,0.7707]
[1726002312431,0.42021,2379.6,2379.5,0.7707]
[1726002313429,1.05037,2380.0,2379.5,0.7707]
[1726002313736,0.42017,2379.9,2379.7,0.42019]
[1726002313938,0.42018,2379.8,2379.7,0.42019]
[1726002314142,0.42017,2379.9,2379.7,0.42019]
[1726002314439,0.42018,2379.8,2379.7,0.42019]
[1726002314739,1.05025,2380.3,2379.5,0.7707]
[1726002314933,0.42013,2380.1,2379.9,0.42015]
[1726002315132,0.42013,2380.1,2380.0,0.7886]
[1726002315945,0.42012,2380.1,2380.0,1.20873]
[1726002316242,0.42012,2380.1,2380.0,0.7886]
[1726002316436,1.47044,2380.1,2380.0,0.7886]
[1726002316737,1.47044,2380.1,2379.7,0.42019]
[1726002316738,1.05032,2380.1,2379.7,0.42019]
[1726002316943,0.42016,2379.9,2379.8,0.3833]
[1726002317139,0.42018,2379.8,2379.7,0.3967]
[1726002318043,0.42018,2379.8,2379.7,0.8169]
[1726002319045,0.42018,2379.8,2379.7,5.0193]
[1726002319242,0.76223359,2380.5,2380.3,0.42009]
[1726002319243,4.102,2380.4,2380.3,0.42009]
[1726002319449,4.52208,2380.4,2380.2,0.4201]
[1726002319642,4.52208,2380.4,2380.0,0.3833]
[1726002319643,1.80092,2380.8,2380.3,0.7803]
[1726002319856,0.42007,2380.4,2380.3,0.7803]
[1726002320138,0.42007,2380.4,2380.3,41.5803]
[1726002320533,0.42007,2380.5,2380.3,42.00039]
[1726002320936,1.05007,2380.7,2380.3,41.5803]
[1726002321147,0.42007,2380.5,2380.3,42.00039]
[1726002321345,0.42007,2380.4,2380.3,41.5803]
[1726002321641,0.42007,2380.4,2380.3,40.8]
[1726002326652,0.42007,2380.4,2380.3,41.22009]
[1726002326854,0.42007,2380.4,2380.3,40.8]
[1726002327149,0.42007,2380.4,2380.3,41.22009]
[1726002327653,0.42007,2380.4,2380.3,40.8]
[1726002328451,0.42007,2380.5,2380.3,41.22009]
[1726002328653,1.05008,2380.7,2380.4,0.3738]
[1726002328850,0.42004,2380.6,2380.5,0.3891]
[1726002329154,0.42004,2380.6,2380.5,0.7889]
[1726002329847,1.04998,2380.9,2380.5,4.9897]
[1726002330152,0.42003,2380.7,2380.5,1.20895]
[1726002330547,0.42004,2380.6,2380.5,0.7889]
[1726002331149,0.42003,2380.7,2380.5,0.7889]
[1726002331350,0.42004,2380.6,2380.5,0.7889]
[1726002331554,0.42003,2380.7,2380.5,0.7889]
[1726002331854,0.42004,2380.6,2380.5,0.7889]
[1726002332253,0.42003,2380.7,2380.5,0.7889]
[1726002335863,0.41999,2380.9,2380.6,0.42003]
[1726002336363,0.41999,2380.9,2380.6,0.42002]
[1726002336563,0.42,2380.8,2380.6,0.42002]
[1726002337153,1.42869,2381.1,2380.5,0.7889]
[1726002337154,0.41999,2380.9,2380.7,0.42001]
[1726002337555,0.41998,2381.0,2380.8,0.42]
[1726002337854,0.41998,2381.0,2380.9,0.7865]
[1726002338052,1.04985,2381.2,2380.9,0.7865]
[1726002338255,0.41995,2381.1,2380.9,1.20648]
[1726002338450,0.4199,2381.4,2381.2,0.41992]
[1726002338661,1.6511574,2381.8,2381.3,0.4032]
[1726002338662,1.04961,2381.7,2381.3,0.4032]
[1726002338866,0.7876,2381.9,2381.0,0.3925]
[1726002339064,0.41992,2381.3,2381.1,40.8]
[1726002339257,1.04957,2381.8,2381.1,40.8]
[1726002339258,0.41988,2381.5,2381.2,0.41992]
[1726002339559,1.04966,2381.6,2381.1,40.8]
[1726002339862,1.04968,2381.6,2381.1,40.8]
[1726002340158,1.04968,2381.6,2381.3,0.41991]
[1726002340159,0.41987,2381.6,2381.3,0.41991]
[1726002340361,0.41988,2381.5,2381.2,0.41992]
[1726002341755,0.41987,2381.6,2381.1,40.8]
[1726002341950,1.83716,2381.9,2381.1,40.8]
[1726002342255,0.4198,2382.0,2381.6,0.41985]
[1726002342462,0.8076,2382.0,2381.6,0.41985]
[1726002342656,0.3878,2382.0,2381.7,0.80474]
[1726002342856,0.80759,2382.0,2381.7,0.80474]
[1726002343056,0.41979,2382.0,2381.7,0.80474]
[1726002343256,0.41979,2382.0,2381.8,0.3725]
[1726002345559,0.41981,2381.9,2381.8,0.3725]
[1726002345761,1.43721,2382.2,2381.8,0.3725]
[1726002345962,0.4198,2382.0,2381.8,0.3725]
[1726002347870,0.80756,2382.2,2381.9,0.4198]
[1726002348375,0.41976,2382.2,2381.9,0.4198]
[1726002348576,0.41976,2382.2,2381.9,0.7919]
[1726002348770,0.41977,2382.1,2381.9,0.3721]
[1726002348966,1.04933,2382.4,2381.9,0.7919]
[1726002349271,0.41977,2382.1,2381.9,0.7919]
[1726002349571,1.04933,2382.4,2381.9,0.7919]
[1726002349773,0.41977,2382.2,2381.9,0.7919]
[1726002349974,0.41978,2382.1,2381.9,0.3721]
[1726002351272,0.41978,2382.1,2381.9,0.79191]
[1726002351770,0.41978,2382.1,2381.9,0.3721]
[1726002352672,0.41978,2382.1,2381.9,0.79191]
[1726002354177,0.41978,2382.1,2381.9,0.3721]
[1726002354374,0.41978,2382.1,2381.9,0.79191]
[1726002354572,0.41978,2382.1,2381.9,0.3721]
[1726002354775,0.41978,2382.1,2381.9,0.7919]
[1726002355162,0.41978,2382.1,2382.0,40.8]
[1726002355366,1.04933,2382.4,2382.0,40.8]
[1726002355777,0.41977,2382.1,2382.0,40.8]
[1726002355970,1.04933,2382.4,2382.0,40.8]
[1726002355971,0.41976,2382.2,2382.0,40.8]
[1726002357365,0.41977,2382.1,2382.0,40.8]
[1726002357978,0.41977,2382.2,2382.0,40.8]
[1726002358879,1.04933,2382.4,2382.0,40.8]
[1726002359372,0.41977,2382.1,2382.0,40.8]
[1726002360179,0.41977,2382.1,2382.0,44.9984]
[1726002360382,0.41977,2382.1,2382.0,40.8]
[1726002360972,1.46921,2382.1,2382.0,40.8]
[1726002362882,12.71705,2382.1,2382.0,40.8]
[1726002363183,12.71705,2382.1,2381.4,0.7666]
[1726002363184,0.41988,2381.5,2381.4,0.7666]
[1726002363390,1.04952,2381.9,2381.4,0.7666]
[1726002363391,0.41987,2381.6,2381.4,0.7666]
[1726002363594,0.41988,2381.5,2381.4,41.5666]
[1726002364090,4.61908,2381.5,2381.4,40.8]
[1726002365293,0.41988,2381.5,2381.4,40.8]
[1726002366299,5.66878,2381.5,2381.4,40.8]
[1726002369799,0.41995,2381.1,2381.0,0.7666]
[1726002370298,0.41995,2381.1,2381.0,41.5666]
[1726002375404,1.46983,2381.1,2381.0,41.5666]
[1726002375605,5.66983,2381.1,2381.0,40.8]
[1726002375807,1.47007,2380.7,2380.6,1.1465]
[1726002376006,1.47007,2380.7,2380.0,2.58264828]
[1726002376007,0.42011,2380.2,2380.1,0.42012]
[1726002376209,0.42011,2380.2,2380.1,41.9465]
[1726002377008,0.42011,2380.2,2380.1,42.36662]
[1726002377306,0.42011,2380.2,2380.1,41.9465]
[1726002377511,1.05011,2380.6,2380.1,46.1481]
[1726002377709,0.42007,2380.4,2380.3,0.42008]
[1726002377907,0.42006,2380.5,2380.4,0.42007]
[1726002378613,0.42007,2380.4,2380.3,0.42008]
[1726002378906,4.102,2380.8,2380.5,0.42005]
[1726002379214,1.04999,2380.9,2380.8,0.42]
[1726002379215,0.41999,2380.9,2380.8,0.42]
[1726002379803,0.41999,2380.9,2380.8,41.22]
[1726002379998,0.41999,2380.9,2380.8,40.8]
[1726002380205,0.41998,2381.0,2380.9,0.41998]
[1726002380706,5.15181,2381.3,2380.8,40.8]
[1726002380707,1.04985,2381.2,2380.8,40.8]
[1726002380911,1.04988,2381.1,2380.8,40.8]
[1726002381113,0.41998,2380.9,2380.8,41.21999]
[1726002381311,0.41998,2381.0,2380.8,41.21999]
[1726002381506,0.41998,2381.0,2380.9,0.41998]
[1726002381809,5.15181,2381.3,2380.9,0.41998]
[1726002381810,0.41996,2381.1,2380.9,0.41998]
[1726002381999,0.41997,2381.0,2380.9,0.41998]
[1726002382199,0.41997,2381.0,2380.8,40.8]
[1726002382406,1.04975,2381.4,2380.9,4.2]
[1726002382608,0.41992,2381.3,2380.8,40.8]
[1726002382803,0.41992,2381.3,2381.1,0.41994]
[1726002383003,0.41992,2381.3,2381.2,0.7886]
[1726002383512,0.41992,2381.3,2381.2,4.9878]
[1726002384117,0.41992,2381.3,2381.2,0.7886]
[1726002386007,0.41992,2381.3,2380.8,40.8]
[1726002386008,1.46995,2380.9,2380.8,40.8]
[1726002386208,0.41998,2380.9,2380.8,40.8]
[1726002387911,1.46995,2380.9,2380.8,40.8]
[1726002389117,5.66995,2380.9,2380.8,40.8]
[1726002392220,0.41998,2380.9,2380.8,40.8]
[1726002393018,0.41998,2380.9,2380.8,41.1651]
[1726002399316,1.04993,2381.0,2380.8,41.1651]
[1726002399317,0.41998,2381.0,2380.9,0.41998]
[1726002399519,0.41998,2381.0,2380.9,0.78448]
[1726002399719,0.41996,2381.1,2381.0,0.41997]
[1726002399918,0.41992,2381.3,2381.2,0.41992]
[1726002400113,0.41991,2381.4,2381.2,0.41992]
[1726002400313,0.41991,2381.4,2381.3,0.78981]
[1726002400712,0.41991,2381.4,2381.3,0.3699]
[1726002403525,0.41991,2381.4,2381.3,0.78981]
[1726002403926,0.41991,2381.4,2381.3,0.3699]
[1726002404124,1.09259963,2381.8,2381.4,0.41989]
[1726002404429,1.09259963,2381.8,2381.3,0.3699]
[1726002404430,0.41984,2381.8,2381.3,0.3699]
[1726002404722,0.41983,2381.8,2381.6,0.41985]
[1726002405021,0.41984,2381.7,2381.5,0.41987]
[1726002405413,0.41984,2381.7,2381.5,4.61907]
[1726002405813,0.41986,2381.6,2381.4,0.41988]
[1726002406113,0.41985,2381.7,2381.5,0.41988]
[1726002406530,0.41986,2381.6,2381.5,0.41988]
[1726002407028,1.04962,2381.7,2381.3,1.88960994]
[1726002407227,0.41989,2381.5,2381.3,0.7898]
[1726002407715,0.41985,2381.7,2381.5,0.41986]
[1726002408219,0.41986,2381.7,2381.5,0.41988]
[1726002408421,1.04957,2381.8,2381.5,0.41988]
[1726002408628,1.04957,2381.8,2381.6,40.8]
[1726002408629,0.41984,2381.7,2381.6,40.8]
[1726002409220,0.41984,2381.8,2381.6,40.8]
[1726002409427,0.4198,2382.0,2381.7,4.1984]
[1726002409624,6.24396963,2382.3,2381.9,0.4198]
[1726002409821,6.24396963,2382.3,2381.8,0.3805]
[1726002409822,0.4198,2382.0,2381.8,0.3805]
[1726002410024,0.4198,2382.0,2381.8,0.80032]
[1726002410327,0.4198,2382.0,2381.8,0.80031]
[1726002410722,0.41981,2381.9,2381.8,0.80031]
[1726002410923,0.4198,2382.0,2381.8,0.80031]
[1726002411321,0.41978,2382.1,2381.8,0.3805]
[1726002411523,0.41977,2382.2,2382.0,0.41978]
[1726002411729,0.41979,2382.1,2381.9,0.4198]
[1726002412534,5.15137,2382.3,2381.9,0.4198]
[1726002412727,0.41978,2382.1,2381.9,0.4198]
[1726002413130,0.41978,2382.1,2382.0,0.3768]
[1726002416530,1.04948,2382.0,2381.0,1.09979994]
[1726002416834,1.04948,2382.0,2380.6,3.80135215]
[1726002416835,0.42003,2380.7,2380.5,1.09979994]
[1726002417035,0.42003,2380.7,2380.6,40.8]
[1726002417231,0.42005,2380.5,2380.4,0.392]
[1726002417836,0.42005,2380.5,2380.4,41.192]
[1726002418134,0.42005,2380.6,2380.4,41.192]
[1726002418339,1.05001,2380.8,2380.4,41.192]
[1726002418538,0.42005,2380.5,2380.4,41.192]
[1726002420731,1.04992,2381.1,2380.4,41.192]
[1726002420936,1.04977,2381.4,2380.5,1.05014]
[1726002421147,1.26069,2381.6,2380.6,2.34326691]
[1726002421437,1.0498,2381.3,2380.8,0.41999]
[1726002421633,0.41997,2381.0,2380.8,0.41999]
[1726002421935,0.41999,2380.9,2380.7,0.80651]
[1726002422135,1.04975,2381.4,2380.7,0.80652]
[1726002422340,4.313,2381.5,2380.7,0.3865]
[1726002422341,0.42,2380.8,2380.7,0.3865]
[1726002422836,0.41999,2380.9,2380.7,4.5865]
[1726002423137,0.41998,2381.0,2380.8,0.41999]
[1726002423838,0.3722,2381.4,2381.0,0.41996]
[1726002423839,1.04977,2381.4,2381.0,0.41996]
[1726002424438,0.41996,2381.1,2380.9,0.41997]
[1726002424635,0.41996,2381.1,2381.0,41.2023]
[1726002427639,1.46984,2381.1,2381.0,41.2023]
[1726002428339,1.46984,2381.1,2380.5,1.09979994]
[1726002428340,0.42004,2380.6,2380.5,1.09979994]